fUSD/lending_fUSD_20241029
["ID","MTS","AMOUNT","RATE_DAILY","PERIOD"]
[340987626,1730214651547,-500.0,0.00042099,7]
[340987627,1730214651558,-500.0,0.00042099,7]
[340987628,1730214651568,-500.0,0.00042099,7]
[340987629,1730214651578,-500.0,0.00042099,7]
[340987630,1730214651588,-500.0,0.00042099,7]
[340987631,1730214651597,-500.0,0.00042099,7]
[340987632,1730214651608,-500.0,0.00042099,7]
[340987633,1730214651618,-500.0,0.00042099,7]
[340987634,1730214651628,-500.0,0.00042099,7]
[340987635,1730214651637,-500.0,0.00042099,7]
[340987636,1730214651647,-500.0,0.00042099,7]
[340987637,1730214651657,-500.0,0.00042099,7]
[340987638,1730214651666,-500.0,0.00042099,7]
[340987639,1730214651676,-500.0,0.00042099,7]
[340987640,1730214651686,-500.0,0.00042099,7]
[340987641,1730214651696,-500.0,0.00042099,7]
[340987642,1730214651706,-500.0,0.00042099,7]
[340987643,1730214651719,-500.0,0.00042099,7]
[340987644,1730214651729,-500.0,0.00042099,7]
[340987645,1730214651738,-620.43,0.00042099,7]
[340987646,1730214651748,-500.0,0.00042099,7]
[340987647,1730214651759,-500.0,0.00042099,7]
[340987648,1730214651769,-500.0,0.00042099,7]
[340987649,1730214651780,-500.0,0.00042099,7]
[340987650,1730214651790,-500.0,0.00042099,7]
[340987651,1730214651800,-500.0,0.00042099,7]
[340987652,1730214651810,-500.0,0.00042099,7]
[340987653,1730214651819,-500.0,0.00042099,7]
[340987654,1730214651829,-500.0,0.00042099,7]
[340987655,1730214651838,-500.0,0.00042099,7]
[340987656,1730214651849,-500.0,0.00042099,7]
[340987657,1730214651858,-500.0,0.00042099,7]
[340987658,1730214651868,-500.0,0.00042099,7]
[340987659,1730214651879,-500.0,0.00042099,7]
[340987660,1730214651888,-517.83713332,0.00042099,7]
[340987661,1730214651898,-519.48313229,0.00042099,7]
[340987662,1730214651908,-500.0,0.00042099,7]
[340987663,1730214651992,-500.0,0.00042099,7]
[340987664,1730214652014,-500.0,0.00042099,7]
[340987665,1730214652024,-500.0,0.00042099,7]
[340987666,1730214652033,-500.0,0.00042099,7]
[340987667,1730214652042,-500.0,0.00042099,7]
[340987668,1730214652052,-500.0,0.00042099,7]
[340987669,1730214652061,-500.0,0.00042099,7]
[340987670,1730214652070,-500.0,0.00042099,7]
[340987671,1730214652079,-500.0,0.00042099,7]
[340987672,1730214652089,-500.0,0.00042099,7]
[340987673,1730214652098,-500.0,0.00042099,7]
[340987674,1730214652108,-500.0,0.00042099,7]
[340987675,1730214652117,-214.86069943,0.00042099,7]
[340987676,1730214652127,-500.0,0.00042099,7]
[340987677,1730214652137,-500.0,0.00042099,7]
[340987678,1730214652146,-500.0,0.00042099,7]
[340987679,1730214652155,-150.0,0.00042099,7]
[340987680,1730214652165,-500.0,0.00042099,60]
[340987681,1730214652174,-398.35938222,0.00042099,7]
[340987682,1730214652183,-500.0,0.00042099,7]
[340987683,1730214652192,-500.0,0.00042099,7]
[340987684,1730214652202,-770.3,0.00042099,7]
[340987685,1730214652211,-500.0,0.00042099,7]
[340987686,1730214652220,-500.0,0.00042099,7]
[340987687,1730214652229,-500.0,0.00042099,7]
[340987688,1730214652238,-500.0,0.00042099,7]
[340987689,1730214652248,-500.0,0.00042099,7]
[340987690,1730214652257,-587.36866742,0.00042099,7]
[340987691,1730214652266,-500.0,0.00042099,7]
[340987692,1730214652275,-500.0,0.00042099,7]
[340987693,1730214652284,-500.0,0.00042099,7]
[340987694,1730214652293,-500.0,0.00042099,7]
[340987695,1730214652302,-500.0,0.00042099,7]
[340987696,1730214652312,-999.0,0.00042164,120]
[340987697,1730214652321,-999.0,0.00042164,120]
[340987698,1730214652331,-999.0,0.00042164,120]
[340987699,1730214652341,-999.0,0.00042164,120]
[340987700,1730214652350,-999.0,0.00042164,120]
[340987701,1730214652359,-999.0,0.00042164,120]
[340987702,1730214652369,-999.0,0.00042164,120]
[340987703,1730214652379,-999.0,0.00042164,120]
[340987704,1730214652388,-999.0,0.00042164,120]
[340987705,1730214652398,-999.0,0.00042164,120]
[340987706,1730214652407,-999.0,0.00042164,120]
[340987707,1730214652416,-999.0,0.00042164,120]
[340987708,1730214652426,-999.0,0.00042164,120]
[340987709,1730214652435,-150.0,0.00042177,2]
[340987710,1730214652444,-5801.501114,0.000422,2]
[340987711,1730214652453,-13287.36347261,0.00042227,2]
[340987712,1730214652462,-175.2379063,0.00042227,2]
[340987713,1730214652472,-488.12629446,0.00042227,2]
[340987714,1730214652481,-500.0,0.00042271,2]
[340987715,1730214652491,-728.72,0.00042271,7]
[340987716,1730214652499,-500.0,0.00042271,7]
[340987717,1730214652510,-582.59,0.00042271,7]
[340987718,1730214652519,-509.92175505,0.00042271,7]
[340987719,1730214652529,-500.0,0.00042271,7]
[340987720,1730214652538,-500.0,0.00042272,7]
[340987721,1730214652548,-500.0,0.00042272,7]
[340987722,1730214652559,-1851.03,0.00042272,120]
[340987723,1730214652568,-500.0,0.00042272,7]
[340987724,1730214652578,-500.0,0.00042272,7]
[340987725,1730214652588,-227.54,0.00042272,7]
[340987726,1730214652597,-500.0,0.00042272,7]
[340987727,1730214652607,-500.0,0.00042272,7]
[340987728,1730214652616,-500.0,0.00042272,7]
[340987729,1730214652626,-611.30447078,0.00042272,7]
[340987730,1730214652636,-500.0,0.00042272,7]
[340987731,1730214652647,-500.0,0.00042272,7]
[340987732,1730214652656,-2222.44,0.00042272,7]
[340987733,1730214652666,-279.21373526,0.00042272,7]
[340987734,1730214652675,-500.0,0.00042272,7]
[340987735,1730214652685,-500.0,0.00042272,7]
[340987736,1730214652695,-500.0,0.00042272,7]
[340987737,1730214652704,-500.0,0.00042272,7]
[340987738,1730214652716,-500.0,0.00042272,7]
[340987739,1730214652725,-8651.39,0.00042272,7]
[340987740,1730214652735,-500.0,0.00042272,7]
[340987741,1730214652744,-583.39204935,0.00042272,7]
[340987742,1730214652754,-500.0,0.00042272,7]
[340987743,1730214652763,-5156.34,0.00042272,7]
[340987744,1730214652772,-500.0,0.00042272,7]
[340987745,1730214652782,-2214.74,0.00042272,7]
[340987746,1730214652791,-500.0,0.00042272,7]
[340987747,1730214652801,-500.0,0.00042272,7]
[340987748,1730214652811,-500.0,0.00042272,7]
[340987749,1730214652820,-500.0,0.00042272,7]
[340987750,1730214652830,-618.92,0.00042272,7]
[340987751,1730214652839,-475.23,0.00042272,7]
[340987752,1730214652848,-500.0,0.00042272,7]
[340987753,1730214652858,-210.15970883,0.00042273,5]
[340987754,1730214652867,-500.0,0.00042273,10]
[340987755,1730214652876,-500.0,0.00042273,10]
[340987756,1730214652887,-500.0,0.00042273,7]
[340987757,1730214652896,-516.12060049,0.00042273,7]
[340987758,1730214652905,-500.0,0.00042273,7]
[340987759,1730214652914,-500.0,0.00042273,7]
[340987760,1730214652923,-939.21,0.00042273,7]
[340987761,1730214652932,-500.0,0.00042273,7]
[340987762,1730214652942,-500.0,0.00042273,7]
[340987763,1730214652951,-632.24,0.00042273,7]
[340987764,1730214652961,-500.0,0.00042273,7]
[340987765,1730214652969,-524.77,0.00042273,7]
[340987766,1730214652979,-405.83318182,0.00042273,7]
[340987767,1730214652988,-500.0,0.00042273,7]
[340987768,1730214652997,-500.0,0.00042273,7]
[340987769,1730214653007,-500.0,0.00042273,7]
[340987770,1730214653016,-585.42,0.00042273,7]
[340987771,1730214653025,-500.0,0.00042273,7]
[340987772,1730214653034,-500.0,0.00042273,7]
[340987773,1730214653043,-500.0,0.00042273,7]
[340987774,1730214653053,-510.9958683,0.00042273,7]
[340987775,1730214653062,-500.0,0.00042273,7]
[340987776,1730214653071,-1863.95,0.00042273,7]
[340987777,1730214653079,-500.0,0.00042273,7]
[340987778,1730214653088,-500.0,0.00042273,7]
[340987779,1730214653097,-500.0,0.00042273,7]
[340987780,1730214653107,-1504.51,0.00042273,7]
[340987781,1730214653116,-500.0,0.00042273,7]
[340987782,1730214653125,-500.0,0.00042273,7]
[340987783,1730214653134,-500.0,0.00042273,7]
[340987784,1730214653144,-500.0,0.00042273,7]
[340987785,1730214653153,-563.54099355,0.00042273,7]
[340987786,1730214653162,-500.0,0.00042273,7]
[340987787,1730214653171,-554.32,0.00042273,7]
[340987788,1730214653180,-500.0,0.00042273,7]
[340987789,1730214653189,-571.31628363,0.00042273,7]
[340987790,1730214653198,-500.0,0.00042273,7]
[340987791,1730214653207,-500.0,0.00042273,7]
[340987792,1730214653216,-500.0,0.00042273,7]
[340987793,1730214653226,-500.0,0.00042273,7]
[340987794,1730214653235,-500.0,0.00042273,7]
[340987795,1730214653244,-500.0,0.00042273,7]
[340987796,1730214653253,-500.0,0.00042273,7]
[340987797,1730214653262,-150.0,0.00042273,7]
[340987798,1730214653271,-500.0,0.00042273,7]
[340987799,1730214653281,-189.74462223,0.00042273,7]
[340987800,1730214653290,-500.0,0.00042273,7]
[340987801,1730214653299,-500.0,0.00042273,7]
[340987802,1730214653309,-500.0,0.00042273,7]
[340987803,1730214653320,-500.0,0.00042273,7]
[340987804,1730214653330,-185.17,0.00042273,7]
[340987805,1730214653339,-557.32260407,0.00042273,7]
[340987806,1730214653349,-500.0,0.00042273,7]
[340987807,1730214653359,-500.0,0.00042273,7]
[340987808,1730214653368,-500.0,0.00042273,7]
[340987809,1730214653377,-500.0,0.00042273,7]
[340987810,1730214653387,-525.8414839,0.00042273,7]
[340987811,1730214653397,-515.90177178,0.00042273,7]
[340987812,1730214653406,-500.0,0.00042273,7]
[340987813,1730214653416,-500.0,0.00042273,7]
[340987814,1730214653426,-2137.33,0.00042273,7]
[340987815,1730214653436,-500.0,0.00042273,7]
[340987816,1730214653445,-200.0,0.00042273,7]
[340987817,1730214653454,-573.61,0.00042273,7]
[340987818,1730214653464,-500.0,0.00042273,7]
[340987819,1730214653474,-500.0,0.00042273,7]
[340987820,1730214653483,-500.0,0.00042273,7]
[340987821,1730214653492,-500.0,0.00042273,7]
[340987822,1730214653502,-561.05211182,0.00042273,7]
[340987823,1730214653511,-500.0,0.00042273,7]
[340987824,1730214653521,-500.0,0.00042273,7]
[340987825,1730214653530,-500.0,0.00042273,7]
[340987826,1730214653540,-500.0,0.00042273,7]
[340987827,1730214653549,-518.80019184,0.00042273,7]
[340987828,1730214653559,-500.0,0.00042273,7]
[340987829,1730214653568,-360.28873629,0.00042273,7]
[340987830,1730214653578,-500.0,0.00042273,7]
[340987831,1730214653587,-458.27917703,0.00042273,7]
[340987832,1730214653597,-500.0,0.00042273,7]
[340987833,1730214653606,-525.06035301,0.00042273,7]
[340987834,1730214653615,-500.0,0.00042273,7]
[340987835,1730214653625,-507.54356046,0.00042273,7]
[340987836,1730214653636,-500.0,0.00042273,7]
[340987837,1730214653648,-503.01493698,0.00042273,7]
[340987838,1730214653657,-500.0,0.00042273,7]
[340987839,1730214653667,-508.44449858,0.00042273,7]
[340987840,1730214653677,-500.0,0.00042273,7]
[340987841,1730214653686,-175.59041115,0.00042273,7]
[340987842,1730214653695,-500.0,0.00042273,7]
[340987843,1730214653704,-500.0,0.00042273,7]
[340987844,1730214653717,-500.0,0.00042273,7]
[340987845,1730214653727,-152.0471503,0.00042273,7]
[340987846,1730214653736,-500.0,0.00042273,7]
[340987847,1730214653745,-500.0,0.00042273,7]
[340987848,1730214653755,-500.0,0.00042273,7]
[340987849,1730214653764,-500.0,0.00042273,7]
[340987850,1730214653774,-530.09555856,0.00042273,7]
[340987851,1730214653783,-508.78494753,0.00042273,7]
[340987852,1730214653793,-522.2321516,0.00042273,7]
[340987853,1730214653803,-514.85502626,0.00042273,7]
[340987854,1730214653812,-500.0,0.00042273,7]
[340987855,1730214653821,-500.0,0.00042273,7]
[340987856,1730214653913,-554.85001954,0.00042273,7]
[340987857,1730214653923,-500.0,0.00042273,7]
[340987858,1730214653932,-525.58584164,0.00042273,7]
[340987859,1730214653941,-500.0,0.00042273,7]
[340987860,1730214653951,-552.04732338,0.00042273,7]
[340987861,1730214653960,-526.40748914,0.00042273,7]
[340987862,1730214653970,-500.0,0.00042273,7]
[340987863,1730214653980,-500.0,0.00042273,7]
[340987864,1730214653989,-500.0,0.00042273,7]
[340987865,1730214653998,-637.14,0.00042273,7]
[340987866,1730214654008,-526.3020748,0.00042273,7]
[340987867,1730214654017,-533.5324961,0.00042273,7]
[340987868,1730214654026,-500.0,0.00042273,7]
[340987869,1730214654036,-500.0,0.00042273,7]
[340987870,1730214654047,-529.4643484,0.00042273,7]
[340987871,1730214654057,-500.0,0.00042273,7]
[340987872,1730214654066,-500.0,0.00042273,7]
[340987873,1730214654075,-520.84326354,0.00042273,7]
[340987874,1730214654085,-500.0,0.00042273,7]
[340987875,1730214654095,-500.0,0.00042273,7]
[340987876,1730214654105,-500.0,0.00042273,7]
[340987877,1730214654115,-500.0,0.00042273,7]
[340987878,1730214654125,-500.0,0.00042273,7]
[340987879,1730214654137,-500.0,0.00042273,7]
[340987880,1730214654146,-220.02185602,0.00042273,7]
[340987881,1730214654155,-500.0,0.00042273,7]
[340987882,1730214654166,-500.0,0.00042273,7]
[340987883,1730214654175,-952.45,0.00042273,7]
[340987884,1730214654184,-500.0,0.00042273,7]
[340987885,1730214654194,-522.88391236,0.00042273,7]
[340987886,1730214654203,-500.0,0.00042273,7]
[340987887,1730214654212,-517.25852619,0.00042273,7]
[340987888,1730214654221,-500.0,0.00042273,7]
[340987889,1730214654230,-500.0,0.00042273,7]
[340987890,1730214654242,-500.0,0.00042273,7]
[340987891,1730214654253,-500.0,0.00042273,7]
[340987892,1730214654264,-500.0,0.00042273,7]
[340987893,1730214654273,-500.0,0.00042273,7]
[340987894,1730214654283,-500.0,0.00042273,7]
[340987895,1730214654292,-500.0,0.00042273,7]
[340987896,1730214654301,-500.0,0.00042273,7]
[340987897,1730214654313,-501.78812356,0.00042273,7]
[340987898,1730214654323,-500.0,0.00042273,7]
[340987899,1730214654333,-500.0,0.00042273,7]
[340987900,1730214654342,-500.0,0.00042273,7]
[340987901,1730214654352,-500.0,0.00042273,7]
[340987902,1730214654362,-500.0,0.00042273,7]
[340987903,1730214654371,-500.0,0.00042273,7]
[340987904,1730214654380,-500.0,0.00042273,7]
[340987905,1730214654390,-500.0,0.00042273,7]
[340987906,1730214654399,-521.46615412,0.00042273,7]
[340987907,1730214654408,-500.0,0.00042273,7]
[340987908,1730214654417,-500.0,0.00042273,7]
[340987909,1730214654426,-2103.02,0.00042273,7]
[340987910,1730214654435,-500.0,0.00042273,7]
[340987911,1730214654445,-500.0,0.00042273,7]
[340987912,1730214654454,-500.0,0.00042273,7]
[340987913,1730214654464,-500.0,0.00042273,7]
[340987914,1730214654473,-573.35,0.00042273,7]
[340987915,1730214654483,-700.0,0.00042273,7]
[340987916,1730214654492,-500.0,0.00042273,7]
[340987917,1730214654502,-500.0,0.00042273,30]
[340987918,1730214654511,-500.0,0.00042273,7]
[340987919,1730214654521,-421.95884306,0.00042273,7]
[340987920,1730214654531,-500.0,0.00042273,7]
[340987921,1730214654540,-500.0,0.00042273,7]
[340987922,1730214654550,-500.0,0.00042273,7]
[340987923,1730214654560,-500.0,0.00042273,7]
[340987924,1730214654571,-500.0,0.00042273,7]
[340987925,1730214654580,-266.92729993,0.00042273,7]
[340987926,1730214654591,-500.0,0.00042273,7]
[340987927,1730214654601,-315.47976588,0.00042273,7]
[340987928,1730214654610,-828.5,0.00042273,7]
[340987929,1730214654620,-724.43,0.00042273,7]
[340987930,1730214654630,-194.317239,0.00042273,14]
[340987931,1730214654641,-500.0,0.00042273,7]
[340987932,1730214654651,-631.84376159,0.00042273,7]
[340987933,1730214654660,-500.0,0.00042273,7]
[340987934,1730214654669,-253.36965403,0.00042273,7]
[340987935,1730214654679,-500.0,0.00042273,7]
[340987936,1730214654688,-500.0,0.00042273,7]
[340987937,1730214654698,-500.0,0.00042273,7]
[340987938,1730214654707,-500.0,0.00042273,7]
[340987939,1730214654720,-500.0,0.00042273,7]
[340987940,1730214654729,-500.0,0.00042273,7]
[340987941,1730214654738,-500.0,0.00042273,7]
[340987942,1730214654748,-500.0,0.00042273,7]
[340987943,1730214654758,-500.0,0.00042273,7]
[340987944,1730214654768,-500.0,0.00042273,7]
[340987945,1730214654777,-500.0,0.00042273,7]
[340987946,1730214654787,-500.0,0.00042273,7]
[340987947,1730214654798,-500.0,0.00042273,7]
[340987948,1730214654807,-191.6466545,0.00042273,7]
[340987949,1730214654817,-500.0,0.00042273,7]
[340987950,1730214654826,-500.0,0.00042273,7]
[340987951,1730214654835,-500.0,0.00042273,7]
[340987952,1730214654845,-1000.0,0.00042273,7]
[340987953,1730214654854,-151.0,0.00042273,14]
[340987954,1730214654864,-586.95690185,0.00042273,7]
[340987955,1730214654874,-500.0,0.00042273,7]
[340987956,1730214654883,-500.0,0.00042273,7]
[340987957,1730214654893,-522.74682078,0.00042273,7]
[340987958,1730214654902,-500.0,0.00042273,7]
[340987959,1730214654911,-500.0,0.00042273,7]
[340987960,1730214654921,-500.0,0.00042273,7]
[340987961,1730214654930,-500.0,0.00042273,7]
[340987962,1730214654939,-500.0,0.00042273,7]
[340987963,1730214654949,-500.0,0.00042273,7]
[340987964,1730214654958,-1422.2848,0.00042273,14]
[340987965,1730214654968,-534.14382381,0.00042273,7]
[340987966,1730214654978,-1422.2848,0.00042273,14]
[340987967,1730214654988,-500.0,0.00042273,7]
[340987968,1730214654997,-500.0,0.00042273,7]
[340987969,1730214655007,-500.0,0.00042273,7]
[340987970,1730214655016,-500.0,0.00042273,7]
[340987971,1730214655025,-521.179929,0.00042273,14]
[340987972,1730214655034,-500.0,0.00042273,7]
[340987973,1730214655043,-1000.0,0.00042273,10]
[340987974,1730214655052,-500.0,0.00042273,7]
[340987975,1730214655062,-500.0,0.00042273,7]
[340987976,1730214655072,-500.0,0.00042273,7]
[340987977,1730214655081,-500.0,0.00042273,7]
[340987978,1730214655091,-500.0,0.00042273,7]
[340987979,1730214655100,-2000.0,0.00042273,7]
[340987980,1730214655109,-151.0,0.00042273,7]
[340987981,1730214655119,-500.0,0.00042273,7]
[340987982,1730214655128,-500.0,0.00042273,7]
[340987983,1730214655139,-500.0,0.00042273,7]
[340987984,1730214655148,-336.95867898,0.00042273,7]
[340987985,1730214655158,-298.67954312,0.00042273,7]
[340987986,1730214655168,-500.0,0.00042273,7]
[340987987,1730214655177,-500.0,0.00042273,7]
[340987988,1730214655186,-500.0,0.00042273,7]
[340987989,1730214655195,-500.0,0.00042273,7]
[340987990,1730214655205,-500.0,0.00042273,7]
[340987991,1730214655215,-500.0,0.00042273,7]
[340987992,1730214655225,-278.016438,0.00042273,14]
[340987993,1730214655235,-1556.76,0.00042273,7]
[340987994,1730214655244,-274.56875001,0.00042282,4]
[340987995,1730214655255,-261.08931363,0.0004229,2]
[340987996,1730214655265,-500.0,0.00042298,7]
[340987997,1730214655274,-4854.48,0.00042298,120]
[340987998,1730214655283,-500.0,0.00042299,2]
[340987999,1730214655293,-500.0,0.00042299,2]
[340988000,1730214655303,-500.0,0.00042299,2]
[340988001,1730214655312,-500.0,0.00042299,2]
[340988002,1730214655323,-549.85360438,0.00042299,2]
[340988003,1730214655335,-199.3795548,0.00042299,60]
[340988004,1730214655345,-1218.86615584,0.00042299,60]
[340988005,1730214655355,-500.0,0.00042299,7]
[340988006,1730214655364,-500.0,0.00042299,7]
[340988007,1730214655372,-500.0,0.00042299,7]
[340988008,1730214655382,-500.0,0.00042299,7]
[340988009,1730214655392,-500.0,0.00042299,7]
[340988010,1730214655401,-500.0,0.00042299,7]
[340988011,1730214655411,-500.0,0.00042299,7]
[340988012,1730214655421,-500.0,0.00042299,7]
[340988013,1730214655430,-150.01,0.00042299,2]
[340988014,1730214655441,-433.1668236,0.00042299,2]
[340988015,1730214655452,-151.0,0.00042299,14]
[340988016,1730214655462,-570.29342339,0.00042299,7]
[340988017,1730214655471,-500.0,0.00042299,7]
[340988018,1730214655480,-544.14615086,0.00042299,7]
[340988019,1730214655489,-434.88209294,0.00042299,7]
[340988020,1730214655499,-20147.82409249,0.00042299,2]
[340988021,1730214655509,-203820.7704404,0.000423,2]
[340988022,1730215111365,814.308,0.00038853,53]
[340988023,1730215114268,150.0,0.00039,30]
[340988024,1730215220746,-150.0,0.00017589,2]
[340988025,1730215337115,815.44598128,0.0002701,30]
[340988031,1730215588092,224.89694787,0.00039,30]
[340988050,1730215687127,150.0,0.00015,2]
[340988051,1730215687150,150.0,0.00015,2]
[340988052,1730215687180,2388.18722507,0.00015,2]
[340988053,1730215687205,800.0,0.00015,2]
[340988054,1730215687227,800.0,0.00015,2]
[340988055,1730215687249,800.0,0.00015,2]
[340988056,1730215687271,800.0,0.00015,2]
[340988057,1730215687291,800.0,0.00015,2]
[340988058,1730215687314,800.0,0.00015,2]
[340988059,1730215687335,800.0,0.00015,2]
[340988060,1730215687357,800.0,0.00015,2]
[340988061,1730215687379,800.0,0.00015,2]
[340988062,1730215687400,800.0,0.00015,2]
[340988063,1730215687419,800.0,0.00015,2]
[340988064,1730215687439,800.0,0.00015,2]
[340988065,1730215687459,800.0,0.00015,2]
[340988066,1730215687479,800.0,0.00015,2]
[340988067,1730215687499,800.0,0.00015,2]
[340988068,1730215687519,800.0,0.00015,2]
[340988069,1730215687539,800.0,0.00015,2]
[340988070,1730215687558,800.0,0.00015,2]
[340988071,1730215687578,800.0,0.00015,2]
[340988072,1730215687598,800.0,0.00015,2]
[340988073,1730215687623,4324.0,0.00015,2]
[340988074,1730215687644,192000.0,0.00015,2]
[340988075,1730215687669,560706.76113379,0.00015,2]
[340988076,1730215705526,150.0,0.000135,2]
[340988077,1730215705548,150.0,0.000135,2]
[340988078,1730215705569,150.0,0.000135,2]
[340988079,1730215705591,150.0,0.000135,2]
[340988080,1730215705613,150.0,0.000135,2]
[340988081,1730215705634,150.0,0.000135,2]
[340988082,1730215705656,100.0,0.000135,2]
[340988083,1730215710685,-169.6073033,0.00015265,2]
[340988084,1730215710938,-169.6073033,0.00015265,2]
[340988085,1730215711063,-169.6073033,0.00015265,2]
[340988086,1730215713974,-169.6073033,0.00015265,2]
[340988087,1730215714240,-169.6073033,0.00015265,2]
[340988088,1730215714427,-169.6073033,0.00015265,2]
[340988089,1730215714569,-169.6073033,0.00015265,2]
[340988090,1730215714714,-169.6073033,0.00015265,2]
[340988091,1730215714860,-169.6073033,0.00015265,2]
[340988092,1730215714965,665.06207071,0.00015235,2]
[340988093,1730215714990,-61.8147233,0.00015265,2]
[340988094,1730215717084,169.6073033,0.000129,2]
[340988095,1730215717105,13805.1606439,0.000129,2]
[340988096,1730215729167,150.0,0.00013,2]
[340988097,1730215729192,150.0,0.00013,2]
[340988098,1730215729213,150.0,0.00013,2]
[340988099,1730215729234,150.0,0.00013,2]
[340988100,1730215729256,29.88775452,0.00013,2]
[340988101,1730215731185,-295.04784126,0.000151,2]
[340988111,1730215795701,150.0,0.00015242,2]
[340988112,1730215796564,-283.07869139,0.00015242,2]
[340988122,1730215831480,-150.0,0.00015265,2]
[340988123,1730215831490,-160.23,0.00015342,2]
[340988124,1730215831503,-433.07869137,0.00015357,2]
[340988125,1730215831512,-433.07869137,0.00015471,2]
[340988126,1730215831521,-244.4,0.00015571,2]
[340988127,1730215831530,-17834.22383947,0.000159,2]
[340988128,1730215831540,-500.0,0.00015973,2]
[340988129,1730215831549,-261.08931364,0.0001599,2]
[340988130,1730215831559,-291.116967,0.00015999,2]
[340988131,1730215831568,-123783.5912944,0.00016,2]
[340988132,1730215831590,-28203.27230189,0.00016,2]
[340988134,1730215835799,-3842.32290662,0.00016,2]
[340988137,1730215835813,-5148.4621716,0.00016,2]
[340988139,1730215835824,-961.51375455,0.00016,2]
[340988141,1730215835835,-26342.8220059,0.00016,2]
[340988331,1730215837805,-234.11,0.0001599,3]
[340988333,1730215837816,-92099.50023097,0.00016,2]
[340988335,1730215837831,-7337.35761675,0.00016,2]
[340988337,1730215837842,-135008.05466484,0.00016,2]
[340988339,1730215837854,-1078.865,0.00016,2]
[340988516,1730215839562,-1473.68102828,0.00016,2]
[340988518,1730215839574,-506.41602438,0.00016,2]
[340988520,1730215839585,-1079.15957587,0.00016,2]
[340988534,1730215839833,-70587.38959605,0.00016,2]
[340988536,1730215839845,-28781.93493922,0.00016,2]
[340988539,1730215839856,-5718.72843129,0.00016,2]
[340988569,1730215842506,-14404.04076221,0.00016,2]
[340988570,1730215842767,-20373.52755294,0.00016,2]
[340988590,1730215845483,-500.0,0.00015999,2]
[340988591,1730215845493,-1730.01506986,0.00016,2]
[340988600,1730215894727,181.71,0.00033076,120]
[340988601,1730215908534,160.12,0.00033079,120]
[340988602,1730215916543,372452.8227849,0.00038,30]
[340988606,1730216351902,-1311.07235223,0.00015242,2]
[340988607,1730216726223,387.024167,0.00014227,2]
[340988608,1730216726247,208.185833,0.00014227,2]
[340988610,1730216799371,150.0,0.00015011,2]
[340988616,1730216851226,-160.77206183,0.00015242,2]
[340988618,1730216942422,-448.83889,0.00015265,2]
[340988619,1730216942444,-171.22,0.00015342,2]
[340988620,1730216942464,-179.94111,0.00015525,2]
[340988621,1730216943596,-393.05889,0.00015525,2]
[340988622,1730216943617,-150.0,0.00015557,2]
[340988623,1730216943639,-184.42,0.00015749,2]
[340988624,1730216943660,-72.52111,0.00015749,2]